bitfinex-derivatives/quotes_BTCF0:USTF0_20250117
["timestamp","ask_amount","ask_price","bid_price","bid_amount"]
[1737095848609,0.53694184,101530.0,101520.0,0.11046762]
[1737095850309,0.53694184,101530.0,101520.0,0.049258]
[1737095852103,0.049258,101520.0,101510.0,0.58681857]
[1737095852297,0.11046762,101520.0,101510.0,0.24398311]
[1737095852500,0.11046762,101520.0,101510.0,0.48002217]
[1737095852698,0.11046762,101520.0,101510.0,0.48002314]
[1737095853501,0.11046762,101520.0,101510.0,0.3051937]
[1737095855513,0.049258,101520.0,101510.0,0.3051937]
[1737095855713,0.049258,101520.0,101510.0,0.32943443]
[1737095856506,0.11046762,101520.0,101510.0,0.32943443]
[1737095856706,0.11046762,101520.0,101510.0,0.56547349]
[1737095857008,0.11046762,101520.0,101510.0,0.56548734]
[1737095858115,0.049258,101520.0,101510.0,0.56548734]
[1737095862119,0.11046762,101520.0,101510.0,0.56548734]
[1737095863017,0.11046762,101520.0,101510.0,0.56549288]
[1737095865009,0.11046762,101520.0,101510.0,0.55317226]
[1737095865214,0.53247724,101520.0,101510.0,0.45502126]
[1737095865718,0.53247724,101520.0,101510.0,0.44935698]
[1737095866111,0.47126762,101520.0,101510.0,0.21331792]
[1737095866520,0.53247724,101520.0,101510.0,0.21898373]
[1737095866715,0.53247724,101520.0,101510.0,0.21331792]
[1737095867311,0.53247724,101520.0,101510.0,0.2009973]
[1737095868622,0.53247724,101520.0,101510.0,0.02424073]
[1737095868924,0.049263,101510.0,101500.0,0.75582457]
[1737095869121,0.11047262,101510.0,101500.0,0.77382177]
[1737095870423,0.11047262,101510.0,101500.0,0.76892177]
[1737095871619,0.11047262,101510.0,101500.0,1.00496083]
[1737095873023,0.11047262,101510.0,101500.0,1.02910825]
[1737095873725,0.11047262,101510.0,101500.0,1.02420825]
[1737095875625,0.11047262,101510.0,101500.0,0.97494025]
[1737095877311,0.11047262,101510.0,101500.0,0.97492717]
[1737095878627,0.11047262,101510.0,101500.0,0.45492717]
[1737095879324,0.11047262,101510.0,101500.0,0.44260523]
[1737095879628,0.11047262,101510.0,101500.0,0.21888811]
[1737095880727,0.049263,101510.0,101500.0,0.21888811]
[1737095880918,0.11047262,101510.0,101500.0,0.21888811]
[1737095881119,0.11047262,101510.0,101500.0,0.21888807]
[1737095882921,0.11047262,101510.0,101500.0,0.21892586]
[1737095883721,0.47127262,101510.0,101500.0,0.21892586]
[1737095883926,0.53607262,101510.0,101500.0,0.21322589]
[1737095884130,0.53607262,101510.0,101500.0,0.20090399]
[1737095884632,0.53607262,101510.0,101500.0,0.02414742]
[1737095884830,0.48680962,101510.0,101490.0,0.53530525]
[1737095885131,0.11047762,101500.0,101490.0,0.55331311]
[1737095886037,0.11047762,101500.0,101490.0,0.31727405]
[1737095886330,0.11047762,101500.0,101490.0,0.34162305]
[1737095886526,0.11047762,101500.0,101490.0,0.28041343]
[1737095886728,0.11047762,101500.0,101490.0,0.34162305]
[1737095887632,0.11047762,101500.0,101490.0,0.57766211]
[1737095888834,0.11047762,101500.0,101490.0,0.40090554]
[1737095889034,0.11047762,101500.0,101490.0,0.40088501]
[1737095889434,0.11047762,101500.0,101490.0,0.33967539]
[1737095890129,0.53248724,101500.0,101490.0,0.30947539]
[1737095890338,0.53248724,101500.0,101490.0,0.27837539]
[1737095890531,0.53248724,101500.0,101490.0,0.26038806]
[1737095891427,0.53248724,101500.0,101490.0,0.20145024]
[1737095891632,0.53248724,101500.0,101490.0,0.17710124]
[1737095891938,0.59369686,101500.0,101490.0,0.17710124]
[1737095892435,0.53248724,101500.0,101490.0,0.17710124]
[1737095892734,0.049273,101490.0,101480.0,0.17710124]
[1737095892938,0.62719224,101490.0,101480.0,0.17710124]
[1737095893133,0.62719224,101490.0,101480.0,0.17220124]
[1737095894139,0.57791924,101490.0,101460.0,0.26893906]
[1737095894333,0.47129262,101470.0,101460.0,0.29303337]
[1737095895346,0.47129262,101470.0,101460.0,0.07240333]
[1737095899248,0.53250224,101470.0,101460.0,0.03950333]
[1737095899438,0.56380224,101470.0,101460.0,0.03950333]
[1737095899641,0.50259262,101470.0,101460.0,0.03950333]
[1737095899840,0.56380224,101470.0,101460.0,0.03950333]
[1737095900034,0.50259262,101470.0,101460.0,0.03950333]
[1737095900844,0.56380224,101470.0,101460.0,0.03950333]
[1737095902344,0.59390224,101470.0,101460.0,0.03950333]
[1737095906248,0.59390224,101470.0,101460.0,0.03460333]
[1737095907155,0.59390224,101470.0,101460.0,0.01919431]
[1737095907450,0.59390224,101470.0,101450.0,0.59384]
[1737095907451,0.049288,101460.0,101450.0,0.59384]
[1737095907654,0.53250724,101460.0,101450.0,0.59384]
[1737095907848,0.53250724,101460.0,101450.0,0.60925016]
[1737095909147,0.53250724,101460.0,101450.0,0.60435016]
[1737095910656,0.53250724,101460.0,101450.0,0.62509216]
[1737095916160,0.53250724,101460.0,101450.0,0.63742023]
[1737095916353,0.53250724,101460.0,101450.0,0.63742019]
[1737095916554,0.53250724,101460.0,101450.0,0.62509216]
[1737095917160,0.53250724,101460.0,101450.0,0.63742028]
[1737095917552,0.53250724,101460.0,101450.0,0.63742038]
[1737095918356,0.53250724,101460.0,101450.0,0.64305565]
[1737095919656,0.53250724,101460.0,101450.0,0.64305552]
[1737095921064,0.47129762,101460.0,101450.0,0.64305552]
[1737095921265,0.47129762,101460.0,101450.0,0.66278038]
[1737095921764,0.47129762,101460.0,101450.0,0.89881944]
[1737095922162,0.47129762,101460.0,101450.0,0.90786291]
[1737095922461,0.47129762,101460.0,101450.0,0.89881944]
[1737095922662,0.47129762,101460.0,101450.0,0.9078629]
[1737095923457,0.47129762,101460.0,101450.0,0.3829229]
[1737095924861,0.47129762,101460.0,101450.0,1.07245087]
[1737095925867,0.47129762,101460.0,101450.0,1.0724811]
[1737095926961,0.38199494,101480.0,101450.0,1.49449072]
[1737095927166,0.47128762,101480.0,101470.0,0.06120962]
[1737095927367,0.11048762,101480.0,101470.0,0.07919446]
[1737095927565,0.11048762,101480.0,101470.0,0.098695]
[1737095927766,0.11048762,101480.0,101470.0,0.15990462]
[1737095927972,0.049278,101480.0,101470.0,0.39594368]
[1737095928176,0.11048762,101480.0,101470.0,0.38053352]
[1737095928659,0.11048762,101480.0,101470.0,0.37563352]
[1737095929066,0.11048762,101480.0,101470.0,0.42491652]
[1737095929662,0.049278,101480.0,101470.0,0.42491652]
[1737095929864,0.11048762,101480.0,101470.0,0.4174886]
[1737095931667,0.11048762,101480.0,101470.0,0.34848859]
[1737095932472,0.11048762,101480.0,101470.0,0.36758161]
[1737095937983,0.049278,101480.0,101470.0,0.35979122]
[1737095938182,0.11048762,101480.0,101470.0,0.35979122]
[1737095938884,0.11048762,101480.0,101470.0,0.12958564]
[1737095940681,0.11048762,101480.0,101470.0,0.14191127]
[1737095941281,0.11048762,101480.0,101470.0,0.12958564]
[1737095942387,0.47128762,101480.0,101470.0,0.01909302]
[1737095942576,0.049283,101470.0,101460.0,0.970486]
[1737095942784,0.17339262,101470.0,101460.0,0.98281173]
[1737095943604,0.17339262,101470.0,101460.0,0.98281207]
[1737095943799,0.17339262,101470.0,101460.0,0.98842709]
[1737095945607,0.17339262,101470.0,101460.0,0.98841764]
[1737095945997,0.17339262,101470.0,101460.0,1.00732957]
[1737095947200,0.17339262,101470.0,101460.0,1.06853919]
[1737095947395,0.17339262,101470.0,101460.0,1.03813919]
[1737095947711,0.53419262,101470.0,101460.0,0.03684457]
[1737095947905,0.56489262,101470.0,101460.0,0.03684457]
[1737095948507,0.56489262,101470.0,101460.0,0.05225447]
[1737095949709,0.56489262,101470.0,101460.0,0.05225501]
[1737095951510,0.56489262,101470.0,101460.0,0.04735501]
[1737095951696,0.56489262,101470.0,101460.0,0.04664945]
[1737095953706,0.56489262,101470.0,101460.0,0.10785907]
[1737095953707,0.442383,101470.0,101460.0,0.10785907]
[1737095953912,0.049283,101470.0,101460.0,0.2504558]
[1737095954109,0.049283,101470.0,101460.0,0.2834558]
[1737095954414,0.049283,101470.0,101460.0,0.22224618]
[1737095954614,0.049283,101470.0,101460.0,0.20683628]
[1737095956812,0.049283,101470.0,101460.0,0.2680459]
[1737095957013,0.049283,101470.0,101460.0,0.20683628]
[1737095957912,0.049283,101470.0,101460.0,0.206836]
[1737095963520,0.049283,101470.0,101460.0,0.21244751]
[1737095964324,0.049283,101470.0,101460.0,0.27365713]
[1737095965111,0.049283,101470.0,101460.0,0.21244751]
[1737095966517,0.04928,101480.0,101460.0,0.65417491]
[1737095966720,0.04928,101480.0,101470.0,0.06120962]
[1737095967023,0.04928,101480.0,101470.0,0.07353607]
[1737095967411,0.04928,101480.0,101470.0,0.12281907]
[1737095970920,0.04928,101480.0,101470.0,0.12843626]
[1737095971705,0.04928,101480.0,101470.0,0.12064587]
[1737095972319,0.04928,101480.0,101470.0,0.12064589]
[1737095973318,0.04928,101480.0,101470.0,0.48144589]
[1737095973712,0.04928,101480.0,101470.0,0.51464589]
[1737095974421,0.04928,101480.0,101470.0,0.52982927]
[1737095976311,0.04928,101480.0,101470.0,0.51010983]
[1737095977321,0.04928,101480.0,101470.0,0.80443715]
[1737095978424,0.04928,101480.0,101470.0,0.51010983]
[1737095979626,0.04928,101480.0,101470.0,0.80443715]
[1737095982318,0.04928,101480.0,101470.0,0.82415651]
[1737095983827,0.04928,101480.0,101470.0,1.23049868]
[1737095984624,0.04928,101480.0,101470.0,1.16928906]
[1737095984825,0.04928,101480.0,101470.0,1.23049868]
[1737095985125,0.04928,101480.0,101470.0,0.54215376]
[1737095986723,0.04928,101480.0,101470.0,0.54212543]
[1737095988720,0.04928,101480.0,101470.0,0.54212295]
[1737095988920,0.04928,101480.0,101470.0,0.83645027]
[1737095990826,0.04928,101480.0,101470.0,0.83645111]
[1737095992629,0.04928,101480.0,101470.0,0.54212379]
[1737095993219,0.51558811,101490.0,101470.0,0.54212379]
[1737095993419,0.56486211,101490.0,101480.0,0.06120962]
[1737095994319,0.56486211,101490.0,101480.0,0.07353423]
[1737095994929,0.56486211,101490.0,101480.0,0.01232461]
[1737095995622,0.20406211,101490.0,101480.0,0.01232461]
[1737095996129,0.20406211,101490.0,101480.0,0.01792142]
[1737095996526,0.20406211,101490.0,101480.0,0.07913104]
[1737095996924,0.20406211,101490.0,101480.0,0.06680643]
[1737095997130,0.20406211,101490.0,101480.0,0.07913096]
[1737095997436,0.56486211,101490.0,101470.0,0.79801627]
[1737095997620,0.56486211,101490.0,101470.0,0.81773552]
[1737095997821,0.0614,101490.0,101480.0,0.53249724]
[1737095998023,0.0309,101490.0,101480.0,0.5522151]
[1737095998222,0.0309,101490.0,101480.0,0.6175151]
[1737095999124,0.0309,101490.0,101480.0,0.61751404]
[1737095999737,0.0309,101490.0,101480.0,1.30625405]
[1737096000028,0.049269,101500.0,101480.0,1.25697605]
[1737096000231,0.56537462,101510.0,101490.0,0.11047962]
[1737096000532,0.56537462,101510.0,101500.0,0.06120962]
[1737096000731,0.56537462,101510.0,101490.0,0.11047962]
[1737096001124,0.56537462,101510.0,101490.0,0.34678447]
[1737096001427,0.56537462,101510.0,101500.0,0.06120962]
[1737096002430,0.11047762,101500.0,101490.0,0.27878446]
[1737096002631,0.53248724,101500.0,101490.0,0.23630485]
[1737096003023,0.53248724,101500.0,101490.0,0.18640485]
[1737096003425,0.48321924,101500.0,101480.0,0.55057758]
[1737096003623,0.17378262,101490.0,101480.0,0.55057758]
[1737096004025,0.17378262,101490.0,101480.0,0.6117872]
[1737096004628,0.080473,101490.0,101480.0,0.3786695]
[1737096004931,0.080473,101490.0,101480.0,0.7394695]
[1737096005133,0.080473,101490.0,101480.0,0.75918732]
[1737096005328,0.080473,101490.0,101480.0,0.6979777]
[1737096005532,0.080473,101490.0,101480.0,0.75918732]
[1737096005733,0.080473,101490.0,101480.0,1.44560306]
[1737096006831,0.080473,101490.0,101480.0,0.75918732]
[1737096007434,0.080473,101490.0,101480.0,0.73002567]
[1737096009230,0.080473,101490.0,101480.0,0.74234928]
[1737096009437,0.080473,101490.0,101480.0,0.74795511]
[1737096014438,0.080473,101490.0,101480.0,1.04228243]
[1737096014937,0.080473,101490.0,101480.0,1.04228232]
[1737096016532,0.080669,101500.0,101480.0,1.04228232]
[1737096016736,0.080669,101500.0,101490.0,0.14253059]
[1737096016936,0.049269,101500.0,101490.0,0.54097607]
[1737096017134,0.049269,101500.0,101490.0,0.57347607]
[1737096017337,0.049269,101500.0,101490.0,0.5734751]
[1737096018037,0.049269,101500.0,101490.0,0.11941751]
[1737096018241,0.049269,101500.0,101490.0,0.0997014]
[1737096019035,0.049269,101500.0,101490.0,0.09970143]
[1737096021945,0.049269,101500.0,101490.0,0.27691063]
[1737096023241,0.049269,101500.0,101490.0,0.29662804]
[1737096023434,0.049269,101500.0,101490.0,0.27691132]
[1737096024247,0.049269,101500.0,101490.0,0.09970212]
[1737096024644,0.410069,101500.0,101490.0,0.03764606]
[1737096024849,0.53362659,101500.0,101490.0,0.01792912]
[1737096025236,0.049273,101490.0,101480.0,1.5599672]
[1737096025443,0.53423059,101490.0,101480.0,1.21709618]
[1737096025636,0.53423059,101490.0,101480.0,0.56837739]
[1737096025841,0.53423059,101490.0,101480.0,0.56277194]
[1737096026041,0.56653059,101490.0,101480.0,0.55044841]
[1737096026948,0.56653059,101490.0,101480.0,0.72772057]
[1737096029150,0.56653059,101490.0,101480.0,0.55044841]
[1737096030854,0.65978818,101490.0,101480.0,0.55044841]
[1737096031054,0.049278,101480.0,101470.0,0.17727216]
[1737096031239,0.53443559,101480.0,101470.0,0.18959803]
[1737096031852,0.53443559,101480.0,101470.0,0.18469803]
[1737096032155,0.53443559,101480.0,101470.0,0.17237216]
[1737096032847,0.53443559,101480.0,101470.0,0.18778054]
[1737096033548,0.53443559,101480.0,101470.0,0.17237216]
[1737096034158,0.049283,101470.0,101460.0,0.01844999]
[1737096034358,0.56684059,101470.0,101450.0,0.53139829]
[1737096034657,0.50334459,101460.0,101450.0,0.54680866]
[1737096036450,0.50334459,101460.0,101450.0,0.54533037]
[1737096036656,0.53554459,101460.0,101450.0,0.54533037]
[1737096037157,0.53554459,101460.0,101450.0,0.5640158]
[1737096039765,0.442287,101460.0,101450.0,0.5640158]
[1737096039965,0.410087,101460.0,101450.0,0.65727339]
[1737096040366,0.410087,101460.0,101450.0,0.68797339]
[1737096040663,0.049287,101460.0,101450.0,1.09806539]
[1737096041274,0.049287,101460.0,101450.0,1.11602124]
[1737096041664,0.049287,101460.0,101450.0,1.11601971]
[1737096042378,0.04179221,101460.0,101450.0,1.11601971]
[1737096042673,0.049284,101470.0,101450.0,1.11601971]
[1737096042873,0.049284,101470.0,101460.0,0.15465759]
[1737096043776,0.049284,101470.0,101460.0,0.65800218]
[1737096044461,0.049284,101470.0,101460.0,0.67595885]
[1737096044871,0.5805,101480.0,101460.0,0.67595885]
[1737096045070,0.629778,101480.0,101470.0,0.12335759]
[1737096045374,0.410078,101480.0,101470.0,0.12335759]
[1737096047980,0.50333559,101480.0,101470.0,0.0301]
[1737096049781,0.50333559,101480.0,101470.0,0.04672493]
[1737096049980,0.410078,101480.0,101470.0,0.04672493]
[1737096054183,0.410078,101480.0,101470.0,0.064695]
[1737096055983,0.410078,101480.0,101470.0,0.06469494]
[1737096061884,0.049278,101480.0,101470.0,0.11397794]
[1737096062075,0.082374,101490.0,101480.0,0.049278]
[1737096062281,0.082374,101490.0,101480.0,0.12405759]
[1737096062488,0.082374,101490.0,101480.0,0.03646995]
[1737096062684,0.082374,101490.0,101470.0,0.55006352]
[1737096062988,0.082374,101490.0,101470.0,0.62765032]
[1737096064494,0.082374,101490.0,101470.0,0.86363567]
[1737096065486,0.082374,101490.0,101470.0,0.86362795]
[1737096067494,0.082374,101490.0,101470.0,0.86362867]
[1737096068192,0.082374,101490.0,101470.0,1.39358867]
[1737096068797,0.082374,101490.0,101480.0,0.23598535]
[1737096068998,0.082374,101490.0,101480.0,0.25397707]
[1737096072595,0.082374,101490.0,101480.0,0.30325507]
[1737096072797,0.082374,101490.0,101480.0,0.39651266]
[1737096073894,0.082374,101490.0,101480.0,0.39652201]
[1737096075497,0.082374,101490.0,101480.0,0.39652144]
[1737096075797,0.082374,101490.0,101480.0,0.37852094]
[1737096076102,0.082374,101490.0,101480.0,0.39652144]
[1737096078001,0.082374,101490.0,101480.0,0.75732125]
[1737096078300,0.443169,101500.0,101490.0,0.049273]
[1737096078601,0.443169,101500.0,101490.0,0.17563059]
[1737096078801,0.049269,101500.0,101490.0,0.55442933]
[1737096078998,0.63148327,101510.0,101490.0,0.50515633]
[1737096079198,0.68074827,101510.0,101500.0,0.14252559]
[1737096080003,0.474265,101510.0,101500.0,0.14252559]
[1737096081003,0.474265,101510.0,101500.0,0.049268]
[1737096081601,0.474265,101510.0,101500.0,0.14252559]
[1737096082389,0.080865,101510.0,101500.0,0.14252559]
[1737096082700,0.080865,101510.0,101500.0,0.16050769]
[1737096084106,0.080865,101510.0,101500.0,0.16050756]
[1737096084505,0.080865,101510.0,101500.0,0.14252559]
[1737096086190,0.080865,101510.0,101500.0,0.14817592]
[1737096086504,0.080865,101510.0,101500.0,0.14252559]
[1737096087209,0.049265,101510.0,101500.0,0.14817452]
[1737096087398,0.049265,101510.0,101500.0,0.16049634]
[1737096088196,0.049265,101510.0,101500.0,0.16050358]
[1737096089205,0.049265,101510.0,101500.0,0.14818176]
[1737096090496,0.049265,101510.0,101500.0,0.14818187]
[1737096090695,0.049268,101500.0,101490.0,0.66080765]
[1737096091005,0.049268,101500.0,101490.0,0.64628671]
[1737096091906,0.049268,101500.0,101490.0,0.11597404]
[1737096092501,0.049268,101500.0,101490.0,0.20923163]
[1737096093816,0.049268,101500.0,101490.0,0.19125257]
[1737096094010,0.410068,101500.0,101490.0,0.19125257]
[1737096094213,0.049268,101500.0,101490.0,0.19125257]
[1737096095406,0.049268,101500.0,101490.0,0.09799498]
[1737096096407,0.049268,101500.0,101490.0,0.1159902]
[1737096099117,0.049268,101500.0,101490.0,0.26960355]
[1737096099307,0.443268,101500.0,101490.0,0.26960355]
[1737096099716,0.53652559,101500.0,101490.0,0.25160833]
[1737096100215,0.53652559,101500.0,101490.0,0.01562298]
[1737096100519,0.049273,101490.0,101480.0,0.23598535]
[1737096100819,0.53343059,101490.0,101480.0,0.23598535]
[1737096101027,0.56513059,101490.0,101480.0,0.23598535]
[1737096102112,0.56513059,101490.0,101480.0,0.25025677]
[1737096102312,0.56513059,101490.0,101480.0,0.01427142]
[1737096102512,0.51585759,101490.0,101470.0,0.62469566]
[1737096102711,0.049278,101480.0,101470.0,0.53143807]
[1737096103918,0.049278,101480.0,101470.0,0.55122697]
[1737096104114,0.049278,101480.0,101470.0,0.5455528]
[1737096105416,0.049278,101480.0,101470.0,0.69377017]
[1737096105611,0.049278,101480.0,101470.0,0.7343954]
[1737096105813,0.049278,101480.0,101470.0,0.7646954]
[1737096106417,0.440175,101490.0,101470.0,0.7646954]
[1737096106614,0.079375,101490.0,101480.0,0.14253559]
[1737096106819,0.079375,101490.0,101480.0,0.19254718]
[1737096107117,0.079375,101490.0,101480.0,0.19254696]
[1737096108224,0.079375,101490.0,101480.0,0.18764696]
[1737096109829,0.079375,101490.0,101480.0,0.54844696]
[1737096110234,0.079375,101490.0,101480.0,0.18764696]
[1737096112721,0.079375,101490.0,101480.0,0.17532295]
[1737096112922,0.079375,101490.0,101480.0,0.18765545]
[1737096114929,0.079375,101490.0,101480.0,0.18765557]
[1737096115119,0.079375,101490.0,101480.0,0.17533152]
[1737096115319,0.079375,101490.0,101480.0,0.18765567]
[1737096115531,0.079375,101490.0,101480.0,0.17533152]
[1737096115716,0.079375,101490.0,101480.0,0.08697393]
[1737096115919,0.079375,101490.0,101480.0,0.081278]
[1737096116333,0.079375,101490.0,101480.0,0.049278]
[1737096117626,0.079375,101490.0,101480.0,0.14823775]
[1737096118829,0.079375,101490.0,101480.0,0.3842231]
[1737096119028,0.079375,101490.0,101480.0,0.38422878]
[1737096119233,0.079375,101490.0,101480.0,0.38423]
[1737096119432,0.079375,101490.0,101480.0,0.38423002]
[1737096120029,0.079375,101490.0,101480.0,0.14824467]
[1737096120427,0.079375,101490.0,101480.0,0.16056876]
[1737096120627,0.079375,101490.0,101480.0,0.16056881]
[1737096122036,0.079375,101490.0,101480.0,0.19116881]
[1737096122440,0.079375,101490.0,101480.0,0.42228277]
[1737096122943,0.079375,101490.0,101480.0,0.43146958]
[1737096124742,0.079375,101490.0,101480.0,0.42656958]
[1737096125742,0.079375,101490.0,101480.0,0.44628772]
[1737096127344,0.079375,101490.0,101480.0,0.47543239]
[1737096127535,0.079375,101490.0,101480.0,0.45571425]
[1737096128243,0.079375,101490.0,101480.0,0.4754327]
[1737096128551,0.079375,101490.0,101480.0,0.45571425]
[1737096128745,0.079375,101490.0,101480.0,0.47543266]
[1737096129540,0.079375,101490.0,101480.0,0.83623946]
[1737096129736,0.079375,101490.0,101480.0,0.47543946]
[1737096129938,0.079375,101490.0,101480.0,0.76976678]
[1737096130650,0.079375,101490.0,101480.0,1.16263862]
[1737096131143,0.079375,101490.0,101480.0,1.14292048]
[1737096131345,0.079375,101490.0,101480.0,1.16263866]
[1737096131533,0.079375,101490.0,101480.0,0.39451961]
[1737096132143,0.079375,101490.0,101480.0,0.36391961]
[1737096132631,0.14057613,101490.0,101480.0,0.29352977]
[1737096132836,0.079375,101490.0,101480.0,0.3152529]
[1737096133039,0.440175,101490.0,101480.0,0.3152529]
[1737096133245,0.50137613,101490.0,101480.0,0.3152529]
[1737096133643,0.50137613,101490.0,101480.0,0.25405177]
[1737096133943,0.53227613,101490.0,101480.0,0.24172764]
[1737096134744,0.53227613,101490.0,101480.0,0.24172635]
[1737096134944,0.53227613,101490.0,101480.0,0.005741]
[1737096135146,0.53227613,101490.0,101480.0,0.01806614]
[1737096135342,0.471075,101490.0,101480.0,0.005741]
[1737096135547,0.56435859,101490.0,101480.0,0.005741]
[1737096135747,0.56435659,101490.0,101480.0,0.00574108]
[1737096136350,0.049278,101480.0,101470.0,0.91920274]
[1737096136550,0.082278,101480.0,101470.0,0.94645963]
[1737096136842,0.082278,101480.0,101470.0,0.94645991]
[1737096138046,0.082278,101480.0,101470.0,0.96618011]
[1737096138438,0.082278,101480.0,101470.0,0.94645991]
[1737096138842,0.082278,101480.0,101470.0,0.96128036]
[1737096139048,0.082278,101480.0,101470.0,0.94155991]
[1737096139445,0.082278,101480.0,101470.0,0.96128051]
[1737096139743,0.443078,101480.0,101470.0,0.81871581]
[1737096139945,0.53636159,101480.0,101470.0,0.78980597]
[1737096140745,0.53636159,101480.0,101470.0,0.55382062]
[1737096140949,0.53636159,101480.0,101470.0,0.54892062]
[1737096141146,0.17556159,101480.0,101470.0,0.54892062]
[1737096141348,0.082278,101480.0,101470.0,0.64220421]
[1737096141652,0.082278,101480.0,101470.0,0.72039957]
[1737096141653,0.049278,101480.0,101470.0,0.72039957]
[1737096141953,0.049278,101480.0,101470.0,0.98848492]
[1737096142947,0.049278,101480.0,101470.0,0.9762117]
[1737096143142,0.049278,101480.0,101470.0,0.95643661]
[1737096145456,0.049278,101480.0,101470.0,1.25076393]
[1737096146058,0.049278,101480.0,101470.0,1.23104407]
[1737096146655,0.049278,101480.0,101470.0,0.93671675]
[1737096147055,0.049278,101480.0,101470.0,0.92172981]
[1737096147255,0.049278,101480.0,101470.0,0.93669062]
[1737096149363,0.049278,101480.0,101470.0,0.93668312]
[1737096149857,0.440175,101490.0,101480.0,0.049278]
[1737096150057,0.440175,101490.0,101480.0,0.22373741]
[1737096150858,0.410075,101490.0,101480.0,0.22373741]
[1737096151059,0.410075,101490.0,101480.0,0.25683741]
[1737096151261,0.410075,101490.0,101480.0,0.25683652]
[1737096151463,0.410075,101490.0,101480.0,0.49282187]
[1737096152157,0.410075,101490.0,101480.0,0.85362187]
[1737096152158,0.049275,101490.0,101480.0,0.85362187]
[1737096152362,0.049275,101490.0,101480.0,0.50199058]
[1737096152971,0.049275,101490.0,101480.0,0.5217083]
[1737096153154,0.049275,101490.0,101480.0,0.50199058]
[1737096153462,0.049275,101490.0,101480.0,0.52170826]
[1737096153660,0.049275,101490.0,101480.0,0.88250826]
[1737096154564,0.049275,101490.0,101480.0,0.50199058]
[1737096155053,0.049275,101490.0,101480.0,0.6985329]
[1737096155352,0.049275,101490.0,101480.0,0.72764377]
[1737096157958,0.049275,101490.0,101480.0,1.59846633]
[1737096158364,0.049275,101490.0,101480.0,1.59843204]
[1737096158863,0.049275,101490.0,101480.0,1.20591243]
[1737096159063,0.049275,101490.0,101480.0,0.84511243]
[1737096159867,0.049275,101490.0,101480.0,0.55078511]
[1737096161467,0.049275,101490.0,101480.0,0.50385781]
[1737096161664,0.049275,101490.0,101480.0,0.55078229]
[1737096164467,0.3928,101500.0,101480.0,0.50150429]
[1737096164773,0.410069,101500.0,101490.0,0.11047023]
[1737096164969,0.410069,101500.0,101490.0,0.12851759]
[1737096165169,0.410069,101500.0,101490.0,0.30530895]
[1737096165559,0.410069,101500.0,101490.0,0.30531063]
[1737096166173,0.3608,101500.0,101490.0,0.55045865]
[1737096166367,0.440565,101510.0,101490.0,0.97245588]
[1737096166566,0.440565,101510.0,101500.0,0.12239446]
[1737096166871,0.440565,101510.0,101500.0,0.07924575]
[1737096167073,0.440565,101510.0,101500.0,0.18971098]
[1737096167274,0.440565,101510.0,101500.0,0.17738843]
[1737096167476,0.440565,101510.0,101500.0,0.35417979]
[1737096167972,0.440565,101510.0,101500.0,0.36650216]
[1737096168176,0.440565,101510.0,101500.0,0.36649345]
[1737096168370,0.440565,101510.0,101500.0,0.39939345]
[1737096168581,0.440565,101510.0,101500.0,0.38707111]
[1737096170776,0.079765,101510.0,101500.0,0.39939261]
[1737096171781,0.079765,101510.0,101500.0,0.39939024]
[1737096173781,0.41318998,101520.0,101500.0,0.82138747]
[1737096173986,0.10164898,101520.0,101510.0,0.11046023]
[1737096174282,0.10017079,101520.0,101510.0,0.11617481]
[1737096174483,0.10017079,101520.0,101510.0,0.12849548]
[1737096174784,0.079859,101520.0,101510.0,0.12849548]
[1737096175385,0.079859,101520.0,101510.0,0.30528684]
[1737096177890,0.079859,101520.0,101510.0,0.23728683]
[1737096178676,0.079859,101520.0,101510.0,0.28654983]
[1737096181380,0.079859,101520.0,101510.0,0.28653556]
[1737096181682,0.079859,101520.0,101510.0,0.27470625]
[1737096182186,0.112059,101520.0,101510.0,0.27470625]
[1737096182389,0.17325623,101520.0,101510.0,0.23153279]
[1737096182583,0.53405623,101520.0,101510.0,0.23114623]
[1737096182885,0.59525346,101520.0,101510.0,0.16424602]
[1737096184085,0.59525346,101520.0,101510.0,0.01299445]
[1737096184287,0.59525346,101520.0,101500.0,0.11046423]
[1737096184480,0.50376023,101510.0,101500.0,0.11616284]
[1737096184884,0.50376023,101510.0,101500.0,0.11046423]
[1737096185187,0.50376023,101510.0,101500.0,0.12887491]
[1737096185690,0.442563,101510.0,101500.0,0.12887491]
[1737096186579,0.442563,101510.0,101500.0,0.12317549]
[1737096186580,0.50376023,101510.0,101500.0,0.12317549]
[1737096186789,0.50376023,101510.0,101500.0,0.12887479]
[1737096186987,0.50376023,101510.0,101500.0,0.12317549]
[1737096190685,0.50376023,101510.0,101500.0,0.06197826]
[1737096190996,0.50376023,101510.0,101500.0,0.12317549]
[1737096191591,0.50376023,101510.0,101500.0,0.11827549]
[1737096193377,0.50376023,101510.0,101500.0,0.07390849]
[1737096193988,0.50376023,101510.0,101500.0,0.01271126]
[1737096194193,0.45449723,101510.0,101490.0,0.28525735]
[1737096194383,0.50376023,101510.0,101500.0,0.06119723]
[1737096194887,0.45449723,101510.0,101490.0,0.28525735]
[1737096195088,0.410068,101500.0,101490.0,0.37708945]
[1737096196488,0.410068,101500.0,101490.0,0.36476677]
[1737096196791,0.410068,101500.0,101490.0,0.12878142]
[1737096197185,0.442368,101500.0,101490.0,0.12878142]
[1737096197782,0.442368,101500.0,101490.0,0.12878604]
[1737096198601,0.50356523,101500.0,101490.0,0.14110927]
[1737096199095,0.50356523,101500.0,101490.0,0.12878604]
[1737096199787,0.50356523,101500.0,101490.0,0.11818668]
[1737096199984,0.50356523,101500.0,101490.0,0.12388371]
[1737096200483,0.442368,101500.0,101490.0,0.12388371]
[1737096200793,0.442368,101500.0,101490.0,0.13620692]
[1737096201291,0.442368,101500.0,101490.0,0.12388371]
[1737096201693,0.442368,101500.0,101490.0,0.1362069]
[1737096201900,0.442368,101500.0,101490.0,0.12388371]
[1737096202195,0.442368,101500.0,101490.0,0.35986906]
[1737096203093,0.50356523,101500.0,101490.0,0.12388371]
[1737096204496,0.50356523,101500.0,101490.0,0.13620704]
[1737096204888,0.442368,101500.0,101490.0,0.13620704]
[1737096205888,0.442368,101500.0,101490.0,0.12388371]
[1737096206098,0.442368,101500.0,101490.0,0.13620703]
[1737096206398,0.410068,101500.0,101490.0,0.13620703]
[1737096206597,0.410068,101500.0,101490.0,0.37219238]
[1737096208002,0.410068,101500.0,101490.0,0.37219213]
[1737096208594,0.3933,101510.0,101490.0,0.37219213]
[1737096208804,0.442564,101510.0,101500.0,0.11046523]
[1737096209102,0.442564,101510.0,101500.0,0.11617338]
[1737096209305,0.50376123,101510.0,101500.0,0.11617338]